fUSD/lending_fUSD_20260116
["ID","MTS","AMOUNT","RATE_DAILY","PERIOD"]
[402165693,1768554656299,-429.27180647,0.00017696,2]
[402165694,1768554656314,-70.72819353,0.00017696,2]
[402165695,1768554656323,-500.0,0.00017696,2]
[402165696,1768554656333,-308.71840356,0.00017696,2]
[402165697,1768554656342,-500.0,0.00017696,2]
[402165698,1768554656352,-500.0,0.00017696,2]
[402165699,1768554656361,-500.0,0.00017696,2]
[402165700,1768554656371,-500.0,0.00017696,2]
[402165701,1768554656380,-500.0,0.00017696,2]
[402165702,1768554656389,-500.0,0.00017696,2]
[402165703,1768554656398,-500.0,0.00017696,2]
[402165704,1768554656407,-500.0,0.00017696,2]
[402165705,1768554656417,-500.0,0.00017696,2]
[402165706,1768554656426,-500.0,0.00017696,2]
[402165707,1768554656435,-500.0,0.00017696,2]
[402165708,1768554656445,-500.0,0.00017696,2]
[402165709,1768554656454,-2914.52392005,0.00029415,2]
[402165710,1768554656463,-145.33253041,0.00037808,10]
[402165711,1768554656472,-500.0,0.00037808,10]
[402165712,1768554656481,-1291.51,0.00037808,10]
[402165713,1768554656490,-500.0,0.00037808,10]
[402165714,1768554656499,-500.0,0.00037808,10]
[402165715,1768554656509,-500.0,0.00037808,10]
[402165716,1768554656518,-500.0,0.00037808,10]
[402165717,1768554656527,-549.0,0.00037808,10]
[402165718,1768554656537,-500.0,0.00037808,10]
[402165719,1768554656546,-506.35,0.00037808,10]
[402165720,1768554656555,-1501.73,0.00037808,10]
[402165721,1768554656564,-500.0,0.00037808,10]
[402165722,1768554656573,-500.0,0.00037808,10]
[402165723,1768554656583,-500.0,0.00037808,10]
[402165724,1768554656592,-500.0,0.00037808,10]
[402165725,1768554656602,-741.84,0.00037808,10]
[402165726,1768554656611,-509.52,0.00037808,10]
[402165727,1768554656621,-500.0,0.00037808,10]
[402165728,1768554656630,-500.0,0.00037808,10]
[402165729,1768554656640,-496.49037323,0.00037808,10]
[402165730,1768554656649,-885.74,0.00037808,10]
[402165731,1768554656659,-519.56,0.00037808,10]
[402165732,1768554656668,-500.0,0.00037808,10]
[402165733,1768554656678,-550.56,0.00037808,10]
[402165734,1768554656687,-500.0,0.00037808,10]
[402165735,1768554656696,-500.0,0.00037808,10]
[402165736,1768554656707,-500.0,0.00037808,10]
[402165737,1768554656717,-500.0,0.00037808,10]
[402165738,1768554656726,-500.0,0.00037808,10]
[402165739,1768554656735,-500.0,0.00037808,10]
[402165740,1768554656746,-727.78,0.00037808,10]
[402165741,1768554656755,-500.0,0.00037808,10]
[402165742,1768554656764,-500.0,0.00037808,10]
[402165743,1768554656773,-848.43,0.00037808,10]
[402165744,1768554656783,-500.0,0.00037808,10]
[402165745,1768554656792,-1017.01,0.00037808,10]
[402165746,1768554656802,-729.54,0.00037808,10]
[402165747,1768554656811,-580.03,0.00037808,10]
[402165748,1768554656820,-1258.72,0.00037808,10]
[402165749,1768554656829,-1266.92,0.00037808,10]
[402165750,1768554656839,-756.23,0.00037808,10]
[402165751,1768554656848,-593.31,0.00037808,10]
[402165752,1768554656857,-880.73,0.00037808,10]
[402165753,1768554656866,-500.0,0.00037808,10]
[402165754,1768554656875,-1006.61,0.00037808,10]
[402165755,1768554656885,-502.24,0.00037808,10]
[402165756,1768554656898,-500.0,0.00037808,10]
[402165757,1768554656908,-664.24,0.00037808,10]
[402165758,1768554656917,-500.0,0.00037808,10]
[402165759,1768554656926,-500.0,0.00037808,10]
[402165760,1768554656936,-595.93,0.00037808,10]
[402165761,1768554656945,-500.0,0.00037808,10]
[402165762,1768554656954,-869.94,0.00037808,10]
[402165763,1768554656964,-500.0,0.00037808,10]
[402165764,1768554656973,-662.16,0.00037808,10]
[402165765,1768554656982,-500.0,0.00037808,10]
[402165766,1768554656991,-311.9,0.00037808,10]
[402165767,1768554657001,-280.35,0.00037808,10]
[402165768,1768554657010,-500.0,0.00037808,10]
[402165769,1768554657018,-500.0,0.00037808,10]
[402165770,1768554657027,-998.59,0.00037808,10]
[402165771,1768554657037,-500.0,0.00037808,10]
[402165772,1768554657046,-1840.96,0.00037808,10]
[402165773,1768554657055,-500.0,0.00037808,2]
[402165774,1768554657065,-500.0,0.00037808,10]
[402165775,1768554657075,-500.0,0.00037808,10]
[402165776,1768554657085,-500.0,0.00037808,10]
[402165777,1768554657094,-585.32,0.00037808,10]
[402165778,1768554657104,-663.4,0.00037808,10]
[402165779,1768554657115,-2015.5,0.00037808,10]
[402165780,1768554657125,-1359.87,0.00037808,2]
[402165781,1768554657134,-500.0,0.00037808,10]
[402165782,1768554657144,-500.0,0.00037808,10]
[402165783,1768554657153,-946.14,0.00037808,10]
[402165784,1768554657162,-1755.6,0.00037808,10]
[402165785,1768554657171,-2903.82,0.00037808,10]
[402165786,1768554657180,-500.0,0.00037808,10]
[402165787,1768554657190,-500.0,0.00037808,10]
[402165788,1768554657199,-500.0,0.00037808,10]
[402165789,1768554657208,-500.0,0.00037808,10]
[402165790,1768554657217,-1010.54,0.00037808,10]
[402165791,1768554657227,-500.0,0.00037808,10]
[402165792,1768554657237,-500.0,0.00037808,10]
[402165793,1768554657246,-500.0,0.00037808,10]
[402165794,1768554657256,-606.98,0.00037808,10]
[402165795,1768554657265,-540.76,0.00037808,10]
[402165796,1768554657274,-1544.59,0.00037808,10]
[402165797,1768554657283,-500.0,0.00037808,10]
[402165798,1768554657292,-500.0,0.00037808,10]
[402165799,1768554657302,-856.68,0.00037808,10]
[402165800,1768554657311,-1189.73,0.00037808,10]
[402165801,1768554657320,-1106.09,0.00037808,10]
[402165802,1768554657329,-696.2,0.00037808,10]
[402165803,1768554657338,-500.0,0.00037808,10]
[402165804,1768554657347,-756.4,0.00037808,10]
[402165805,1768554657357,-791.05,0.00037808,10]
[402165806,1768554657366,-500.0,0.00037808,10]
[402165807,1768554657376,-140.55686065,0.00037808,10]
[402165808,1768554657388,-984.51313935,0.00037808,10]
[402165809,1768554657397,-131.27698027,0.00037808,10]
[402165810,1768554657407,-368.72301973,0.00037808,10]
[402165811,1768554657416,-131.27698027,0.00037808,10]
[402165812,1768554657433,-2023.85747976,0.00037808,10]
[402165813,1768554657444,-1247.67553997,0.00037808,10]
[402165814,1768554657453,-500.0,0.00037808,10]
[402165816,1768554657462,-500.0,0.00037808,10]
[402165817,1768554657471,-513.47,0.00037808,10]
[402165818,1768554657480,-533.87994262,0.00037808,10]
[402165819,1768554657489,-500.0,0.00037808,10]
[402165820,1768554657497,-500.0,0.00037808,10]
[402165821,1768554657507,-67.18343496,0.00037808,10]
[402165822,1768554657939,-4782.9383262,0.00023843,2]
[402165823,1768554657950,-555.65159296,0.00023843,2]
[402165824,1768554657961,-1248.62008084,0.00023843,2]
[402165825,1768554657971,-58.5531287,0.00026843,2]
[402165826,1768554657982,-6500.4468713,0.00026843,2]
[402165827,1768554657994,-2291.11211845,0.000349,2]
[402165828,1768554658005,-500.0,0.00035616,10]
[402165829,1768554658015,-500.0,0.0003589,10]
[402165830,1768554658024,-500.0,0.00036164,10]
[402165831,1768554658033,-569.61,0.00036438,10]
[402165832,1768554658042,-963.08656504,0.00037808,10]
[402165833,1768554658057,-807.46,0.00037808,10]
[402165834,1768554658067,-597.93,0.00037808,10]
[402165835,1768554658076,-1273.22,0.00037808,10]
[402165836,1768554658085,-500.0,0.00037808,10]
[402165837,1768554658094,-500.0,0.00037808,10]
[402165838,1768554658103,-500.46,0.00037808,10]
[402165839,1768554658114,-500.0,0.00037808,10]
[402165840,1768554658123,-1999.0,0.00037808,120]
[402165841,1768554658132,-1019.5,0.00037808,10]
[402165842,1768554658141,-2593.39,0.00037808,10]
[402165843,1768554658151,-753.93,0.00037808,10]
[402165844,1768554658160,-500.0,0.00037808,10]
[402165845,1768554658169,-1514.25,0.00037808,10]
[402165846,1768554658178,-854.1,0.00037808,10]
[402165847,1768554658187,-573.98,0.00037808,10]
[402165848,1768554658198,-5792.45,0.00037808,10]
[402165849,1768554658207,-600.0,0.00037808,30]
[402165850,1768554658218,-500.0,0.00037816,5]
[402165851,1768554658228,-961.93263446,0.00037816,5]
[402165852,1768554658238,-1060.63838503,0.00037816,5]
[402165853,1768554658247,-2000.0,0.00037816,5]
[402165854,1768554658256,-2000.0,0.00037816,5]
[402165855,1768554658266,-1116.1940464,0.00037816,5]
[402165856,1768554658275,-1638.20373866,0.00037816,5]
[402165857,1768554658285,-2000.0,0.00037816,5]
[402165858,1768554658294,-2000.0,0.00037816,5]
[402165859,1768554658303,-2000.0,0.00037816,5]
[402165860,1768554658312,-2000.0,0.00037816,5]
[402165861,1768554658322,-1980.3359439,0.00037816,5]
[402165862,1768554658331,-2000.0,0.00037816,5]
[402165863,1768554658341,-507.4,0.00038,14]
[402165864,1768554658350,-5533.0,0.00038,5]
[402165865,1768554658360,-500.0,0.00038081,10]
[402165866,1768554658369,-500.0,0.00038082,2]
[402165867,1768554658379,-500.0,0.00038082,10]
[402165868,1768554658389,-500.0,0.00038082,10]
[402165869,1768554658399,-500.0,0.00038082,10]
[402165870,1768554658408,-500.0,0.00038082,10]
[402165871,1768554658417,-500.0,0.00038082,10]
[402165872,1768554658426,-1291.51,0.00038082,10]
[402165873,1768554658436,-500.0,0.00038082,10]
[402165874,1768554658446,-500.0,0.00038082,10]
[402165875,1768554658455,-500.0,0.00038082,10]
[402165876,1768554658463,-500.0,0.00038082,10]
[402165877,1768554658566,-549.0,0.00038082,10]
[402165878,1768554658583,-500.0,0.00038082,10]
[402165879,1768554658593,-506.35,0.00038082,10]
[402165880,1768554658602,-1501.73,0.00038082,10]
[402165881,1768554658612,-500.0,0.00038082,10]
[402165882,1768554658621,-500.0,0.00038082,10]
[402165883,1768554658630,-500.0,0.00038082,10]
[402165884,1768554658639,-500.0,0.00038082,10]
[402165885,1768554658649,-741.84,0.00038082,10]
[402165886,1768554658658,-509.52,0.00038082,10]
[402165887,1768554658667,-500.0,0.00038082,10]
[402165888,1768554658676,-500.0,0.00038082,10]
[402165889,1768554658685,-885.74,0.00038082,10]
[402165890,1768554658694,-519.56,0.00038082,10]
[402165891,1768554658703,-500.0,0.00038082,10]
[402165892,1768554658712,-500.0,0.00038082,10]
[402165893,1768554658721,-500.0,0.00038082,10]
[402165894,1768554658730,-500.0,0.00038082,10]
[402165895,1768554658739,-500.0,0.00038082,10]
[402165896,1768554658748,-500.0,0.00038082,10]
[402165897,1768554658757,-332.23278736,0.00038082,10]
[402165898,1768554658766,-727.78,0.00038082,10]
[402165899,1768554658775,-500.0,0.00038082,10]
[402165900,1768554658784,-500.0,0.00038082,10]
[402165901,1768554658794,-848.43,0.00038082,10]
[402165902,1768554658803,-500.0,0.00038082,10]
[402165903,1768554658812,-1017.01,0.00038082,10]
[402165904,1768554658821,-729.54,0.00038082,10]
[402165905,1768554658830,-580.03,0.00038082,10]
[402165906,1768554658840,-1258.72,0.00038082,10]
[402165907,1768554658848,-1266.92,0.00038082,10]
[402165908,1768554658857,-756.23,0.00038082,10]
[402165909,1768554658867,-593.31,0.00038082,10]
[402165910,1768554658875,-880.73,0.00038082,10]
[402165911,1768554658884,-500.0,0.00038082,10]
[402165912,1768554658897,-1006.61,0.00038082,10]
[402165913,1768554658906,-502.24,0.00038082,10]
[402165914,1768554658915,-500.0,0.00038082,10]
[402165915,1768554658924,-664.24,0.00038082,10]
[402165916,1768554658934,-500.0,0.00038082,10]
[402165917,1768554658944,-500.0,0.00038082,10]
[402165918,1768554658953,-595.93,0.00038082,10]
[402165919,1768554658963,-500.0,0.00038082,10]
[402165920,1768554658974,-869.94,0.00038082,10]
[402165921,1768554658983,-500.0,0.00038082,10]
[402165922,1768554658992,-500.0,0.00038082,10]
[402165923,1768554659003,-500.0,0.00038082,10]
[402165924,1768554659013,-500.0,0.00038082,10]
[402165925,1768554659022,-998.59,0.00038082,10]
[402165926,1768554659031,-549.44983221,0.00038082,10]
[402165927,1768554659040,-1840.96,0.00038082,10]
[402165928,1768554659050,-500.0,0.00038082,2]
[402165929,1768554659060,-500.0,0.00038082,10]
[402165930,1768554659070,-500.0,0.00038082,10]
[402165931,1768554659080,-500.0,0.00038082,10]
[402165932,1768554659089,-585.32,0.00038082,10]
[402165933,1768554659099,-663.4,0.00038082,10]
[402165934,1768554659108,-2015.5,0.00038082,10]
[402165935,1768554659118,-1359.87,0.00038082,2]
[402165936,1768554659127,-500.0,0.00038082,10]
[402165937,1768554659137,-500.0,0.00038082,10]
[402165938,1768554659147,-946.14,0.00038082,10]
[402165939,1768554659158,-1755.6,0.00038082,10]
[402165940,1768554659173,-2903.82,0.00038082,10]
[402165941,1768554659182,-500.0,0.00038082,10]
[402165942,1768554659191,-500.0,0.00038082,10]
[402165943,1768554659201,-500.0,0.00038082,10]
[402165944,1768554659210,-500.0,0.00038082,10]
[402165945,1768554659221,-1010.54,0.00038082,10]
[402165946,1768554659231,-500.0,0.00038082,10]
[402165947,1768554659240,-500.0,0.00038082,10]
[402165948,1768554659250,-500.0,0.00038082,10]
[402165949,1768554659259,-540.76,0.00038082,10]
[402165950,1768554659268,-1544.59,0.00038082,10]
[402165951,1768554659278,-500.0,0.00038082,10]
[402165952,1768554659287,-479.09382164,0.00038082,10]
[402166041,1768555336026,475.3309953,0.00015331,2]
[402166042,1768555336054,649.36910503,0.00015331,2]
[402166064,1768555535521,10000.0,0.0001,2]
[402166067,1768555552320,2434.05928365,0.000136,2]
[402166069,1768555560489,912.04442978,8e-05,2]
[402166079,1768555630183,-236.16853411,0.000162,5]
[402166080,1768555633369,1330.59184715,0.0001305,2]
[402166081,1768555636072,1120.34184539,0.00015331,2]
[402166082,1768555636101,282.8665254,0.00015331,2]
[402166083,1768555649084,-348.31803454,0.00016112,2]
[402166084,1768555685127,1347.88210991,0.00014689,2]
[402166085,1768555685869,2572.22395872,0.00014689,2]
[402166086,1768555685892,984.85825491,0.00014689,2]
[402166087,1768555686581,6275.11465927,0.00014689,2]
[402166089,1768555687293,2740.03708582,0.00014689,2]
[402166090,1768555687316,6647.15915448,0.00014689,2]
[402166093,1768555688033,3352.85084552,0.00014689,2]
[402166094,1768555688055,9348.35415448,0.00014689,2]
[402166099,1768555706197,651.65584552,0.0001,2]
[402166100,1768555706219,2082.40934938,0.0001,2]
[402166104,1768555743935,150.0,0.00030127,120]
[402166105,1768555754354,628.47,0.00024842,120]
[402166106,1768555754675,628.47,0.000271,120]
[402166113,1768555769087,-7357.86196546,0.00016112,2]
[402166114,1768555769109,-250.0,0.00016156,2]
[402166115,1768555769132,-195.0,0.00016156,2]
[402166116,1768555769152,-300.0,0.00016199,2]
[402166117,1768555769172,-4763.83683991,0.000162,5]
[402166129,1768555831352,-195.0,0.00016564,2]
[402166131,1768555831362,-195.0,0.00016582,2]
[402166133,1768555831371,-300.0,0.000166,2]
[402166134,1768555831380,-385.25973331,0.00016907,2]
[402166135,1768555831390,-147.83048242,0.00017,2]
[402166136,1768555831619,-102.16951758,0.00017,2]
[402166137,1768555831628,-256.02963433,0.00017,2]
[402166138,1768555831638,-250.0,0.00017723,2]
[402166139,1768555831647,-195.0,0.00017723,2]
[402166140,1768555831657,-250.0,0.0001782,2]
[402166141,1768555831667,-300.0,0.0001782,2]
[402166142,1768555831676,-2500.0,0.000179,2]
[402166143,1768555831685,-339.91323266,0.000179,2]
[402166144,1768555831695,-1600.5886623,0.000179,2]
[402166145,1768555831706,-346.78075065,0.000179,2]
[402166146,1768555831717,-681.30855541,0.000179,2]
[402166164,1768555837413,-463.37472464,0.000179,2]
[402166165,1768555837424,-198.90312918,0.000179,3]
[402166166,1768555837434,-871.37763108,0.000179,2]
[402166167,1768555837443,-229.35,0.0001799,3]
[402166168,1768555837453,-300.0,0.00017999,2]
[402166169,1768555837463,-666.0,0.00017999,2]
[402166170,1768555837472,-300.0,0.00017999,2]
[402166171,1768555837484,-474.3660909,0.00017999,2]
[402166172,1768555837494,-266.7951143,0.00017999,2]
[402166173,1768555837503,-194.23254195,0.00017999,2]
[402166174,1768555837513,-299.08134579,0.00017999,2]
[402166175,1768555837522,-500.0,0.00017999,2]
[402166176,1768555837533,-500.0,0.00017999,2]
[402166177,1768555837542,-500.0,0.00017999,2]
[402166178,1768555837551,-585.53145892,0.00017999,2]
[402166179,1768555837563,-500.0,0.00017999,2]
[402166180,1768555837572,-500.0,0.00017999,2]
[402166181,1768555837582,-500.0,0.00017999,2]
[402166182,1768555837591,-500.0,0.00017999,2]
[402166183,1768555837600,-500.0,0.00017999,2]
[402166184,1768555837609,-393.7975469,0.00017999,2]
[402166185,1768555837618,-500.0,0.00017999,2]
[402166186,1768555837627,-500.0,0.00017999,2]
[402166187,1768555837636,-500.0,0.00017999,2]
[402166188,1768555837645,-570.72944075,0.00017999,2]
[402166189,1768555837654,-500.0,0.00017999,2]
[402166190,1768555837663,-500.0,0.00017999,2]
[402166191,1768555837672,-500.0,0.00017999,2]
[402166192,1768555837681,-500.0,0.00017999,2]
[402166193,1768555837690,-500.0,0.00017999,2]
[402166194,1768555837699,-309563.59861447,0.00018,2]
[402166195,1768555837710,-585.12265708,0.00018,2]
[402166196,1768555837723,-8460.0,0.00018,2]
[402166197,1768555837734,-56033.54113682,0.00018,2]
[402166198,1768555837744,-17401.00640134,0.00018,2]
[402166199,1768555837775,-1341.69773257,0.00018,2]
[402166200,1768555837786,-1260.0,0.00018,2]
[402166201,1768555837796,-1118.10003,0.00018,2]
[402166202,1768555837807,-26796.5,0.00018,2]
[402166203,1768555837838,-689.65102884,0.00018,2]
[402166204,1768555837849,-1980.5200001,0.00018,2]
[402166205,1768555839495,-332.9023218,0.00018,2]
[402166206,1768555839669,-412.8989822,0.00018,2]
[402166207,1768555839868,-1392.10538075,0.00018,2]
[402166220,1768555842448,-999.0,0.00018,2]
[402166221,1768555842459,-281.27903155,0.00018,2]
[402166223,1768555842770,-16374.90182027,0.00018,2]
[402166246,1768555845430,-1508.40620615,0.00018,2]
[402166247,1768555845499,-300.23409272,0.00018,2]
[402166248,1768555845718,-344190.52364862,0.00018,2]
[402166265,1768555866769,304.79,9.689e-05,2]
[402166266,1768555866965,304.79,0.00010199,2]
[402166267,1768555867166,304.79,0.00010709,2]
[402166268,1768555867350,304.79,0.00011219,2]
[402166269,1768555867556,304.79,0.00011729,2]
[402166270,1768555867776,304.79,0.00012239,2]
[402166271,1768555867968,304.79,0.00012749,2]
[402166272,1768555868176,304.79,0.00013258,2]
[402166273,1768555868391,304.79,0.00013768,2]
[402166274,1768555868590,304.79,0.00014278,2]
[402166275,1768555868819,304.79,0.00014788,2]
[402166276,1768555869045,304.79,0.00015298,2]
[402166277,1768555869267,304.79,0.00015808,2]
[402166279,1768556120464,265.50261339,0.000301,120]
[402166280,1768556285442,193.0,0.00030137,120]
[402166306,1768556680523,-304.79,0.00016318,2]
[402166307,1768556680547,-124.19644262,0.00016473,2]
[402166308,1768556710493,-99.57817873,0.00016473,2]
[402166309,1768556710514,-67.21435884,0.00016513,2]
[402166310,1768556714643,-151.0,0.00016158,2]
[402166311,1768556714664,-118.81406335,0.00016493,2]
[402166312,1768556716937,-176.10717739,0.00015773,2]
[402166313,1768556825122,-323.89282261,0.00015773,2]
[402166314,1768556825144,-131.18593665,0.00016493,2]
[402166315,1768556825164,-195.0,0.00016493,2]
[402166316,1768556825184,-232.78564116,0.00016513,2]
[402166317,1768556825204,-1235.89528386,0.00016553,2]
[402166318,1768556825224,-345.074731,0.00016584,2]
[402166319,1768556825243,-300.0,0.00016667,2]
[402166320,1768556825263,-300.0,0.00016667,2]
[402166321,1768556825283,-403.41188803,0.00016667,2]
[402166322,1768556825302,-200.0,0.00016738,2]
[402166323,1768556825321,-1000.0,0.00016745,2]
[402166324,1768556825342,-304.79,0.00016828,2]
[402166325,1768556825361,-404.77162338,0.00016845,2]
[402166326,1768556828080,-151.0,0.00016115,2]
[402166327,1768556828102,-1095.22837662,0.00016845,2]
[402166328,1768556828123,-250.0,0.00017,2]
[402166329,1768556828143,-200.0,0.00017211,2]
[402166330,1768556828165,-304.79,0.00017338,2]
[402166331,1768556828188,-250.0,0.0001735,2]
[402166332,1768556828209,-200.0,0.00017365,2]
[402166333,1768556828231,-1200.0,0.00017399,2]
[402166334,1768556828252,-5019.82053718,0.000174,3]
[402166338,1768556956079,-386.34915523,0.00015773,2]
[402166339,1768556966108,-113.65084477,0.00015773,2]
[402166373,1768557017284,158.02,0.00013473,2]
[402166403,1768557031504,-151.0,0.00016392,2]
[402166404,1768557031516,-151.0,0.00016407,2]
[402166405,1768557031528,-151.0,0.0001642,2]
[402166406,1768557031538,-343.75417242,0.00016827,3]
[402166407,1768557031556,-296.0765777,0.00016827,3]
[402166408,1768557031611,-359.16924988,0.00016827,3]
[402166409,1768557031622,-227.19141712,0.000173,2]
[402166410,1768557031635,-507.33351298,0.000173,2]
[402166411,1768557031647,-529107.11504588,0.000173,2]
[402166412,1768557031660,-10936.23259121,0.000173,2]
[402166413,1768557031672,-58593.23840466,0.000173,2]
[402166414,1768557031685,-16027.59992959,0.000173,2]
[402166415,1768557031702,-1014.31929586,0.000173,2]
[402166416,1768557031719,-3794.84900764,0.000173,2]
[402166417,1768557031791,-209.35694206,0.00017299,2]
[402166418,1768557031801,-1722.07897857,0.000173,2]
[402166419,1768557031828,-397.33497739,0.000173,2]
[402166435,1768557037623,-186.75658001,0.00017299,2]
[402166436,1768557037634,-500.0,0.00017299,2]
[402166437,1768557037645,-332.05626363,0.00017299,2]
[402166438,1768557037655,-500.0,0.00017299,2]
[402166439,1768557037665,-459.87202124,0.00017299,2]
[402166440,1768557037675,-500.0,0.00017299,2]
[402166441,1768557037685,-500.0,0.00017299,2]
[402166442,1768557037695,-500.0,0.00017299,2]
[402166443,1768557037705,-500.0,0.00017299,2]
[402166444,1768557037715,-500.0,0.00017299,2]
[402166445,1768557037725,-504.50437476,0.00017299,2]
[402166446,1768557037735,-500.0,0.00017299,2]
[402166447,1768557037745,-500.0,0.00017299,2]
[402166448,1768557037755,-500.0,0.00017299,2]
[402166449,1768557037765,-500.0,0.00017299,2]
[402166450,1768557037775,-500.0,0.00017299,2]
[402166451,1768557037785,-500.0,0.00017299,2]
[402166452,1768557037795,-183.94977944,0.00017299,2]
[402166453,1768557037805,-339.37975469,0.00017299,2]
[402166454,1768557037815,-500.0,0.00017299,2]
[402166455,1768557037824,-500.0,0.00017299,2]
[402166456,1768557037834,-66.58994698,0.00017299,2]
[402166457,1768557037846,-433.41005302,0.00017299,2]
[402166458,1768557037856,-500.0,0.00017299,2]
[402166459,1768557037866,-343.58994698,0.00017299,2]
[402166460,1768557037878,-156.41005302,0.00017299,2]
[402166461,1768557037888,-500.0,0.00017299,2]
[402166462,1768557037898,-248.40994698,0.00017299,2]
[402166463,1768557037913,-251.59005302,0.00017299,2]
[402166464,1768557037923,-500.0,0.00017299,2]
[402166465,1768557037933,-500.0,0.00017299,2]
[402166466,1768557037943,-500.0,0.00017299,2]
[402166467,1768557037953,-167752.66219802,0.000173,2]
[402166469,1768557037964,-999.0,0.000173,2]
[402166472,1768557037978,-3619.89584989,0.000173,2]
[402166476,1768557038017,-15972.94042967,0.000173,2]
[402166494,1768557039616,-25419.42459338,0.000173,2]
[402166495,1768557039773,-163908.78376814,0.000173,2]
[402166496,1768557039783,-315.0,0.00017399,2]
[402166497,1768557039793,-1200.0,0.00017399,2]
[402166498,1768557039803,-8683.7586826,0.000174,3]
[402166499,1768557039813,-745.15158189,0.0001749,2]
[402166500,1768557039822,-550.0,0.00017499,2]
[402166501,1768557039836,-98219.80347764,0.000175,2]
[402166502,1768557039846,-244.0,0.00017714,2]
[402166503,1768557039856,-244.0,0.00017725,2]
[402166504,1768557039865,-244.0,0.00017743,2]
[402166505,1768557039874,-173.47366199,0.000178,2]
[402166506,1768557039884,-1904.61626893,0.000178,2]
[402166507,1768557039893,-168.14273311,0.000178,2]
[402166508,1768557039903,-245.79079401,0.000178,2]
[402166509,1768557039912,-1904.61626884,0.00017811,2]
[402166510,1768557039922,-168.14273308,0.00017817,2]
[402166511,1768557039934,-150.0,0.00017821,2]
[402166512,1768557039944,-1904.61626884,0.00017822,2]
[402166513,1768557039954,-1904.61626884,0.00017833,2]
[402166514,1768557039964,-168.14273308,0.00017833,2]
[402166515,1768557039974,-1904.61626884,0.00017844,2]
[402166516,1768557039987,-304.79,0.00017848,2]
[402166517,1768557039997,-168.14273308,0.0001785,2]
[402166518,1768557040007,-245.79079401,0.0001785,2]
[402166519,1768557040017,-1904.61626884,0.00017856,2]
[402166520,1768557040027,-1128.53728437,0.00017858,2]
[402166521,1768557040036,-2978.22774866,0.00017858,2]
[402166522,1768557040046,-5253.94676925,0.00017858,2]
[402166523,1768557040056,-7859.59014889,0.00017858,2]
[402166524,1768557040066,-10634.3028,0.00017858,2]
[402166525,1768557040076,-500.0,0.00017858,2]
[402166526,1768557040086,-1904.61626884,0.00017867,2]
[402166527,1768557040096,-168.14273308,0.00017867,2]
[402166528,1768557040106,-1904.61626884,0.00017878,2]
[402166529,1768557040115,-168.14273308,0.00017883,2]
[402166530,1768557040125,-1904.61626884,0.00017889,2]
[402166531,1768557040135,-11771.3053343,0.000179,3]
[402166532,1768557040145,-1904.61626884,0.000179,2]
[402166533,1768557040155,-168.14273308,0.000179,2]
[402166534,1768557040164,-1136.44132656,0.000179,2]
[402166535,1768557040174,-245.79079401,0.000179,2]
[402166536,1768557040183,-765.0,0.00017973,2]
[402166537,1768557040193,-1936.6139508,0.00017981,2]
[402166538,1768557040202,-232.67621828,0.0001799,2]
[402166539,1768557040213,-200.0,0.00017993,2]
[402166540,1768557040223,-2454.25317082,0.00017999,2]